{"text_format":"1","workbook":"xlsx","n_sheets":1,"sheets":["Hoja1"],"not_rendered":{"charts":0,"images":0,"macros":1,"external_links":0,"defined_names":0,"comments":0,"pivot_tables":0},"unopened":[],"bounds":{"document_bytes":16777216,"sheet_cells":100000,"rows_first":2000,"rows_last":500,"rows_between":2000,"halvings":0,"cell_chars":16384,"cell_head_chars":4096},"cells_cut":0,"cells_raw":0,"read":"whole","date_system":"1900"}

{"sheet":"Hoja1","index":0,"n_rows":29,"n_cols":30,"rows_kept":29,"cut":false,"hidden":false,"merged":[[1,26,2,27],[0,26,0,29],[0,11,0,24],[1,2,1,3],[0,0,0,9],[2,2,2,3],[1,29,2,29],[1,28,2,28],[2,4,2,5],[2,6,2,7],[2,8,2,9],[2,17,2,18],[1,4,1,7],[1,8,1,9],[2,19,2,20],[1,0,2,1],[1,11,2,12],[2,21,2,22],[2,23,2,24],[1,19,1,24],[2,15,2,16],[2,13,2,14],[1,13,1,18]]}
["COMPETENCIA DIXITAL - 6º PRIMARIA",null,null,null,null,null,null,null,null,null,null,"COMPETENCIA DIXITAL - 6º PRIMARIA",null,null,null,null,null,null,null,null,null,null,null,null,null,null,"COMPETENCIA DIXITAL - 6º PRIMARIA"]
["6º A",null,"C. NATUREZA",null,"C. SOCIAIS",null,null,null,"MÚSICA",null,null,"6º A",null,"LINGUA CASTELÁ",null,null,null,null,null,"LINGUA GALEGA",null,null,null,null,null,null,"6º A",null,"NOTA MEDIA","CUALIFICACIÓN"]
[null,null,"6º-CNB1.4.2 - Presenta un informe, de forma oral ou escrita, empregando soportes variados, recollendo información de fontes (directas, libros, internet) cando traballa de forma individual ou en equipo na realización de proxectos, experiencias sinxelas e pequenas investigacións.",null,"6º-CSB1.2.1 - Utiliza as tecnoloxías da información e a comunicación (internet, blogs, redes sociais...) para elaborar traballos coa terminoloxía adecuada aos temas tratados.",null,"6º-CSB1.2.2 - Analiza informacións relacionadas coa área e manexa imaxes, táboas, gráficos, esquemas, resumos e as tecnoloxías da información e a comunicación.",null,"6º-EMB2.3.1 - Procura información bibliográfica, en medios de comunicación e en internet sobre instrumentos, compositores/as, intérpretes e eventos musicais.",null,null,null,null,"6º-LCB2.9.1 - Utiliza os medios informáticos para obter información.",null,"6º-LCB3.8.1 - Usa con eficacia Internet e as Tecnoloxías da Información e a Comunicación para escribir, presentar os textos e buscar información, crear táboas e gráficas.",null,"6º-LCB4.5.1 - Utiliza distintos programas educativos dixitais como apoio e reforzo da aprendizaxe.",null,"6º-LGB3.5.1 - Usa as TIC na procura de información ou para consultar o dicionario.",null,"6º-LGB3.5.2 - Emprega procesadores de textos de maneira autónoma.",null,"6º-LGB3.5.4 - Utiliza as TIC para realizar presentacións."]
[null,"ALUMNO /A","Nota",0.1,"Nota",0.1,"Nota",0.1,"Nota",0.1,null,null,"ALUMNO /A","Nota",0.1,"Nota",0.1,"Nota",0.1,"Nota",0.1,"Nota",0.1,"Nota",0.1,null,null,"ALUMNO /A",1]
[1,null,null,{"$f":"C5*0.1","v":0},null,{"$f":"E5*0.1","v":0},null,{"$f":"G5*0.1","v":0},null,{"$f":"I5*0.1","v":0},null,1,null,null,{"$f":"N5*0.1","v":0},null,{"$f":"P5*0.1","v":0},null,{"$f":"R5*0.1","v":0},null,{"$f":"T5*0.1","v":0},null,{"$f":"V5*0.1","v":0},null,{"$f":"X5*0.1","v":0},null,1,null,{"$f":"SUM(Y5,W5,U5,S5,Q5,O5,J5,H5,F5,D5,)","v":0},{"$f":"IF(AC5<5,\"INSUFICIENTE\",IF(AC5<6,\"SUFICIENTE\",IF(AC5<7,\"BIEN\",IF(AC5<9,\"NOTABLE\",\"SOBRESALIENTE\"))))","v":"INSUFICIENTE"}]
[2,null,null,{"$f":"C6*0.1","v":0},null,{"$f":"E6*0.1","v":0},null,{"$f":"G6*0.1","v":0},null,{"$f":"I6*0.1","v":0},null,2,null,null,{"$f":"N6*0.1","v":0},null,{"$f":"P6*0.1","v":0},null,{"$f":"R6*0.1","v":0},null,{"$f":"T6*0.1","v":0},null,{"$f":"V6*0.1","v":0},null,{"$f":"X6*0.1","v":0},null,2,null,{"$f":"SUM(Y6,W6,U6,S6,Q6,O6,J6,H6,F6,D6,)","v":0},{"$f":"IF(AC6<5,\"INSUFICIENTE\",IF(AC6<6,\"SUFICIENTE\",IF(AC6<7,\"BIEN\",IF(AC6<9,\"NOTABLE\",\"SOBRESALIENTE\"))))","v":"INSUFICIENTE"}]
[3,null,null,0,null,0,null,0,null,0,null,3,null,null,0,null,0,null,0,null,0,null,0,null,0,null,3,null,0,"INSUFICIENTE"]
[4,null,null,0,null,0,null,0,null,0,null,4,null,null,0,null,0,null,0,null,0,null,0,null,0,null,4,null,0,"INSUFICIENTE"]
[5,null,null,0,null,0,null,0,null,0,null,5,null,null,0,null,0,null,0,null,0,null,0,null,0,null,5,null,0,"INSUFICIENTE"]
[{"$f":"A9+1","v":6},null,null,0,null,0,null,0,null,0,null,{"$f":"L9+1","v":6},null,null,0,null,0,null,0,null,0,null,0,null,0,null,{"$f":"AA9+1","v":6},null,0,"INSUFICIENTE"]
[{"$f":"A10+1","v":7},null,null,0,null,0,null,0,null,0,null,{"$f":"L10+1","v":7},null,null,0,null,0,null,0,null,0,null,0,null,0,null,{"$f":"AA10+1","v":7},null,0,"INSUFICIENTE"]
[8,null,null,0,null,0,null,0,null,0,null,8,null,null,0,null,0,null,0,null,0,null,0,null,0,null,8,null,0,"INSUFICIENTE"]
[9,null,null,0,null,0,null,0,null,0,null,9,null,null,0,null,0,null,0,null,0,null,0,null,0,null,9,null,0,"INSUFICIENTE"]
[10,null,null,0,null,0,null,0,null,0,null,10,null,null,0,null,0,null,0,null,0,null,0,null,0,null,10,null,0,"INSUFICIENTE"]
[11,null,null,0,null,0,null,0,null,0,null,11,null,null,0,null,0,null,0,null,0,null,0,null,0,null,11,null,0,"INSUFICIENTE"]
[12,null,null,0,null,0,null,0,null,0,null,12,null,null,0,null,0,null,0,null,0,null,0,null,0,null,12,null,0,"INSUFICIENTE"]
[13,null,null,0,null,0,null,0,null,0,null,13,null,null,0,null,0,null,0,null,0,null,0,null,0,null,13,null,0,"INSUFICIENTE"]
[14,null,null,0,null,0,null,0,null,0,null,14,null,null,0,null,0,null,0,null,0,null,0,null,0,null,14,null,0,"INSUFICIENTE"]
[15,null,null,0,null,0,null,0,null,0,null,15,null,null,0,null,0,null,0,null,0,null,0,null,0,null,15,null,0,"INSUFICIENTE"]
[16,null,null,0,null,0,null,0,null,0,null,16,null,null,0,null,0,null,0,null,0,null,0,null,0,null,16,null,0,"INSUFICIENTE"]
[17,null,null,0,null,0,null,0,null,0,null,17,null,null,0,null,0,null,0,null,0,null,0,null,0,null,17,null,0,"INSUFICIENTE"]
[18,null,null,0,null,0,null,0,null,0,null,18,null,null,0,null,0,null,0,null,0,null,0,null,0,null,18,null,0,"INSUFICIENTE"]
[19,null,null,0,null,0,null,0,null,0,null,19,null,null,0,null,0,null,0,null,0,null,0,null,0,null,19,null,0,"INSUFICIENTE"]
[20,null,null,0,null,0,null,0,null,0,null,20,null,null,0,null,0,null,0,null,0,null,0,null,0,null,20,null,0,"INSUFICIENTE"]
[21,null,null,0,null,0,null,0,null,0,null,21,null,null,0,null,0,null,0,null,0,null,0,null,0,null,21,null,0,"INSUFICIENTE"]
[22,null,null,0,null,0,null,0,null,0,null,22,null,null,0,null,0,null,0,null,0,null,0,null,0,null,22,null,0,"INSUFICIENTE"]
[23,null,null,0,null,0,null,0,null,0,null,23,null,null,0,null,0,null,0,null,0,null,0,null,0,null,23,null,0,"INSUFICIENTE"]
[24,null,null,0,null,0,null,0,null,0,null,24,null,null,0,null,0,null,0,null,0,null,0,null,0,null,24,null,0,"INSUFICIENTE"]
[25,null,null,0,null,0,null,0,null,0,null,25,null,null,0,null,0,null,0,null,0,null,0,null,0,null,25,null,0,"INSUFICIENTE"]